fUSD/lending_fUSD_20250123
["ID","MTS","AMOUNT","RATE_DAILY","PERIOD"]
[350103875,1737628251617,-500.0,0.00018627,2]
[350103876,1737628251627,-500.0,0.00018627,2]
[350103877,1737628251637,-500.0,0.00018627,2]
[350103878,1737628251646,-500.0,0.00018627,2]
[350103879,1737628251655,-500.0,0.00018627,2]
[350103880,1737628251664,-607.25,0.00018627,2]
[350103881,1737628251673,-500.0,0.00018627,2]
[350103882,1737628251682,-500.0,0.00018627,2]
[350103883,1737628251694,-500.0,0.00018627,2]
[350103884,1737628251704,-225.0398246,0.00018627,2]
[350103885,1737628251713,-500.0,0.00018627,2]
[350103886,1737628251723,-500.0,0.00018627,2]
[350103887,1737628251732,-500.0,0.00018627,2]
[350103888,1737628251742,-500.0,0.00018627,2]
[350103889,1737628251751,-177.42,0.00018627,2]
[350103890,1737628251761,-538.78,0.00018627,2]
[350103891,1737628251774,-500.0,0.00018627,2]
[350103892,1737628251783,-567.4,0.00018627,2]
[350103893,1737628251792,-500.0,0.00018627,2]
[350103894,1737628251801,-524.77,0.00018627,2]
[350103895,1737628251810,-500.0,0.00018627,2]
[350103896,1737628251820,-500.0,0.00018627,2]
[350103897,1737628251829,-500.0,0.00018627,2]
[350103898,1737628251839,-522.01,0.00018627,2]
[350103899,1737628251848,-500.0,0.00018627,2]
[350103900,1737628251857,-787.5,0.00018627,2]
[350103901,1737628251867,-1275.34,0.00018627,2]
[350103902,1737628251876,-769.32,0.00018627,2]
[350103903,1737628251886,-2156.24,0.00018627,2]
[350103904,1737628251895,-1069.57,0.00018627,2]
[350103905,1737628251905,-1953.19,0.00018627,2]
[350103906,1737628251916,-877.78,0.00018627,2]
[350103907,1737628251925,-728.1,0.00018627,2]
[350103908,1737628251935,-1299.42,0.00018627,2]
[350103909,1737628251946,-500.0,0.00018627,2]
[350103910,1737628251956,-1095.09,0.00018627,2]
[350103911,1737628251966,-3013.73,0.00018627,2]
[350103912,1737628251975,-500.0,0.00018627,2]
[350103913,1737628251985,-2369.17,0.00018627,2]
[350103914,1737628251994,-500.0,0.00018627,2]
[350103915,1737628252003,-4365.14,0.00018627,2]
[350103916,1737628252012,-509.92884698,0.00018627,2]
[350103917,1737628252021,-1210.34,0.00018627,2]
[350103918,1737628252031,-1736.02,0.00018627,2]
[350103919,1737628252040,-580.8,0.00018627,2]
[350103920,1737628252049,-896.15,0.00018627,2]
[350103921,1737628252059,-1157.55,0.00018627,2]
[350103922,1737628252068,-970.94,0.00018627,2]
[350103923,1737628252078,-500.0,0.00018627,2]
[350103924,1737628252089,-845.56,0.00018627,2]
[350103925,1737628252098,-554.1,0.00018627,2]
[350103926,1737628252107,-1078.92,0.00018627,2]
[350103927,1737628252116,-2164.97,0.00018627,2]
[350103928,1737628252126,-500.0,0.00018627,2]
[350103929,1737628252136,-500.0,0.00018627,2]
[350103930,1737628252146,-991.29,0.00018627,2]
[350103931,1737628252156,-832.57,0.00018627,2]
[350103932,1737628252166,-500.0,0.00018627,2]
[350103933,1737628252176,-1120.57,0.00018627,2]
[350103934,1737628252185,-500.0,0.00018627,2]
[350103935,1737628252195,-1260.06,0.00018627,2]
[350103936,1737628252205,-1318.84,0.00018627,2]
[350103937,1737628252215,-484.35601683,0.00018627,2]
[350103938,1737628252224,-3971.43,0.00018627,2]
[350103939,1737628252233,-500.0,0.00018627,2]
[350103940,1737628252243,-500.0,0.00018627,2]
[350103941,1737628252252,-500.0,0.00018627,2]
[350103942,1737628252261,-500.0,0.00018627,2]
[350103943,1737628252271,-1140.59,0.00018627,2]
[350103944,1737628252280,-426.45947766,0.00018627,2]
[350103945,1737628252290,-549.59491014,0.00018627,2]
[350103946,1737628252298,-500.0,0.00018627,2]
[350103947,1737628252308,-753.77,0.00018627,2]
[350103948,1737628252317,-500.0,0.00018627,2]
[350103949,1737628252326,-1619.98,0.00018627,2]
[350103950,1737628252335,-500.0,0.00018627,2]
[350103951,1737628252346,-500.0,0.00018627,2]
[350103952,1737628252355,-707.4,0.00018627,2]
[350103953,1737628252365,-1613.72,0.00018627,2]
[350103954,1737628252374,-877.65,0.00018627,2]
[350103955,1737628252384,-525.36,0.00018627,2]
[350103956,1737628252394,-913.42,0.00018627,2]
[350103957,1737628252404,-1322.09,0.00018627,2]
[350103958,1737628252413,-500.0,0.00018628,2]
[350103959,1737628252422,-500.0,0.00018628,2]
[350103960,1737628252431,-500.0,0.00018628,2]
[350103961,1737628252440,-500.0,0.00018628,2]
[350103962,1737628252449,-512.04,0.00018628,2]
[350103963,1737628252458,-794.66,0.00018628,2]
[350103964,1737628252468,-500.0,0.00018628,2]
[350103965,1737628252477,-500.0,0.00018628,2]
[350103966,1737628252487,-500.0,0.00018628,2]
[350103967,1737628252496,-500.0,0.00018628,2]
[350103968,1737628252505,-323.69142119,0.00018628,2]
[350103969,1737628252515,-500.0,0.00018628,2]
[350103970,1737628252525,-500.0,0.00018628,2]
[350103971,1737628252534,-500.0,0.00018628,2]
[350103972,1737628252544,-500.0,0.00018628,2]
[350103973,1737628252554,-500.0,0.00018628,2]
[350103974,1737628252563,-500.0,0.00018628,2]
[350103975,1737628252573,-500.0,0.00018628,2]
[350103976,1737628252582,-500.0,0.00018628,2]
[350103977,1737628252591,-640.13218415,0.00018628,2]
[350103978,1737628252600,-500.0,0.00018628,2]
[350103979,1737628252610,-500.0,0.00018628,2]
[350103980,1737628252621,-500.0,0.00018628,2]
[350103981,1737628252630,-500.0,0.00018628,2]
[350103982,1737628252640,-500.0,0.00018628,2]
[350103983,1737628252649,-500.0,0.00018628,2]
[350103984,1737628252659,-500.0,0.00018628,2]
[350103985,1737628252668,-500.0,0.00018628,2]
[350103986,1737628252678,-500.0,0.00018628,2]
[350103987,1737628252689,-500.0,0.00018628,2]
[350103988,1737628252700,-500.0,0.00018628,2]
[350103989,1737628252709,-788.17,0.00018628,2]
[350103990,1737628252719,-500.0,0.00018628,2]
[350103991,1737628252729,-722.95,0.00018628,2]
[350103992,1737628252739,-599.32,0.00018628,2]
[350103993,1737628252748,-500.0,0.00018628,2]
[350103994,1737628252758,-500.0,0.00018628,2]
[350103995,1737628252770,-515.63698826,0.00018628,2]
[350103996,1737628252780,-500.0,0.00018628,2]
[350103997,1737628252791,-350.14784108,0.00018628,2]
[350103998,1737628252801,-500.0,0.00018628,2]
[350103999,1737628252811,-433.01904227,0.00018628,2]
[350104000,1737628252820,-881.88,0.0001863,2]
[350104001,1737628252830,-741.3,0.0001863,2]
[350104002,1737628252840,-556.21,0.0001863,2]
[350104003,1737628252849,-1227.15,0.0001863,2]
[350104004,1737628252859,-1762.16,0.0001863,2]
[350104005,1737628252868,-1174.6,0.0001863,2]
[350104006,1737628252877,-500.0,0.0001863,2]
[350104007,1737628252887,-1813.47,0.0001863,2]
[350104008,1737628252896,-868.18,0.0001863,2]
[350104009,1737628252905,-1398.82,0.0001863,2]
[350104010,1737628252915,-1853.11,0.0001863,2]
[350104011,1737628252925,-976.92,0.0001863,2]
[350104012,1737628252934,-803.47,0.0001863,2]
[350104013,1737628252944,-878.69,0.0001863,2]
[350104014,1737628252953,-2113.38,0.0001863,2]
[350104015,1737628252962,-2524.6,0.0001863,2]
[350104016,1737628252971,-531.13919461,0.0001863,2]
[350104017,1737628252980,-2306.75,0.0001863,2]
[350104018,1737628252989,-684.26,0.0001863,2]
[350104019,1737628252998,-619.33,0.0001863,2]
[350104020,1737628253007,-500.0,0.0001863,2]
[350104021,1737628253017,-616.66,0.0001863,2]
[350104022,1737628253026,-500.0,0.0001863,2]
[350104023,1737628253036,-805.55555555,0.0001863,2]
[350104024,1737628253045,-1000.0,0.000187,2]
[350104025,1737628253056,-1849.19105754,0.00018702,2]
[350104026,1737628253065,-805.55555555,0.00018712,2]
[350104027,1737628253074,-500.0,0.00018715,2]
[350104028,1737628253084,-500.0,0.00018715,2]
[350104029,1737628253093,-500.0,0.00018715,2]
[350104030,1737628253103,-500.0,0.00018715,2]
[350104031,1737628253112,-562.5781587,0.00018715,2]
[350104032,1737628253122,-500.0,0.00018715,2]
[350104033,1737628253131,-501.34,0.00018715,2]
[350104034,1737628253141,-500.0,0.00018715,2]
[350104035,1737628253151,-518.4,0.00018715,2]
[350104036,1737628253160,-500.0,0.00018715,2]
[350104037,1737628253170,-500.0,0.00018715,2]
[350104038,1737628253179,-500.0,0.00018715,2]
[350104039,1737628253188,-500.0,0.00018715,2]
[350104040,1737628253198,-1109.95,0.00018715,2]
[350104041,1737628253207,-500.0,0.00018715,2]
[350104042,1737628253218,-503.12,0.00018715,2]
[350104043,1737628253228,-1924.8,0.00018715,2]
[350104044,1737628253239,-1424.7,0.00018715,2]
[350104045,1737628253249,-846.93,0.00018715,2]
[350104046,1737628253259,-897.83,0.00018715,2]
[350104047,1737628253389,-1931.74,0.00018715,2]
[350104048,1737628253399,-500.0,0.00018715,2]
[350104049,1737628253408,-681.171483,0.00018715,2]
[350104050,1737628253417,-500.0,0.00018715,2]
[350104051,1737628253426,-500.0,0.00018715,2]
[350104052,1737628253435,-1135.0,0.00018715,2]
[350104053,1737628253444,-745.81,0.00018715,2]
[350104054,1737628253453,-2877.57,0.00018715,2]
[350104055,1737628253462,-349.27356343,0.00018715,2]
[350104056,1737628253669,-667.54,0.00018441,2]
[350104057,1737628253678,-403.05643657,0.00018715,2]
[350104058,1737628253688,-594.772219,0.00018715,2]
[350104059,1737628253701,-500.0,0.00018715,2]
[350104060,1737628253711,-885.15,0.00018715,2]
[350104061,1737628253720,-1925.26,0.00018715,2]
[350104062,1737628253730,-1152.02,0.00018715,2]
[350104063,1737628253742,-69.96244426,0.00018715,2]
[350104064,1737628253767,-500.0,0.00018627,2]
[350104065,1737628253777,-1443.78520587,0.00018715,2]
[350104066,1737628253949,-500.0,0.00017534,2]
[350104067,1737628253959,-500.0,0.00017808,2]
[350104068,1737628253969,-500.0,0.00018078,2]
[350104069,1737628253979,-500.0,0.00018082,2]
[350104070,1737628253989,-240.91721747,0.00018356,2]
[350104071,1737628254001,-259.08278253,0.00018356,2]
[350104072,1737628254010,-500.0,0.0001863,2]
[350104073,1737628254019,-82.09234987,0.00018715,2]
[350104074,1737628254029,-692.87,0.00018715,2]
[350104075,1737628254039,-500.0,0.00018715,2]
[350104076,1737628254048,-1782.27,0.00018715,2]
[350104077,1737628254057,-3581.4,0.00018715,2]
[350104078,1737628254067,-2785.13,0.00018715,2]
[350104079,1737628254076,-649.91,0.00018715,2]
[350104080,1737628254086,-1135.06,0.00018715,2]
[350104081,1737628254096,-1952.88,0.00018715,2]
[350104082,1737628254106,-925.88,0.00018715,2]
[350104083,1737628254115,-2408.66,0.00018715,2]
[350104084,1737628254124,-575.04,0.00018715,2]
[350104085,1737628254133,-500.0,0.00018715,2]
[350104086,1737628254142,-500.0,0.00018715,2]
[350104087,1737628254152,-1828.0,0.00018715,2]
[350104088,1737628254162,-1061.78,0.00018715,2]
[350104089,1737628254172,-645.58,0.00018715,2]
[350104090,1737628254183,-1269.91,0.00018715,2]
[350104091,1737628254193,-2487.38,0.00018715,2]
[350104092,1737628254204,-873.75,0.00018715,2]
[350104093,1737628254214,-500.0,0.00018715,2]
[350104094,1737628254223,-1125.77,0.00018715,2]
[350104095,1737628254233,-776.84,0.00018715,2]
[350104096,1737628254242,-500.0,0.00018715,2]
[350104097,1737628254251,-667.54,0.00018715,2]
[350104098,1737628254260,-199160.88873814,0.0001872,2]
[350104099,1737628254269,-878.56,0.00018751,2]
[350104100,1737628254278,-300.0,0.000188,6]
[350104101,1737628254287,-36184.3016,0.00018801,2]
[350104102,1737628254297,-1000.0,0.00018801,2]
[350104103,1737628254307,-805.55555555,0.00018822,2]
[350104104,1737628254316,-458.01552318,0.00018843,2]
[350104105,1737628254325,-1546.53689568,0.00018866,2]
[350104106,1737628254335,-342.0947816,0.00018869,2]
[350104107,1737628254344,-342.09478159,0.00018869,2]
[350104108,1737628254353,-342.09478159,0.00018869,2]
[350104109,1737628254363,-150.0,0.00018896,2]
[350104110,1737628254372,-500.0,0.000189,2]
[350104111,1737628254381,-500.0,0.000189,2]
[350104112,1737628254390,-500.0,0.000189,2]
[350104113,1737628254399,-283.8,0.000189,2]
[350104114,1737628254409,-500.0,0.000189,2]
[350104115,1737628254418,-500.0,0.000189,2]
[350104116,1737628254427,-500.0,0.000189,2]
[350104117,1737628254435,-500.0,0.000189,2]
[350104118,1737628254444,-500.0,0.000189,2]
[350104119,1737628254453,-500.0,0.000189,2]
[350104120,1737628254462,-516.34309321,0.000189,2]
[350104121,1737628254471,-513.21653149,0.000189,2]
[350104122,1737628254481,-500.0,0.000189,2]
[350104123,1737628254491,-500.0,0.000189,2]
[350104124,1737628254500,-500.0,0.000189,2]
[350104125,1737628254511,-500.0,0.000189,2]
[350104126,1737628254520,-500.0,0.000189,2]
[350104127,1737628254530,-500.0,0.000189,2]
[350104128,1737628254539,-496.89932005,0.000189,2]
[350104129,1737628254547,-500.0,0.000189,2]
[350104130,1737628254556,-500.0,0.000189,2]
[350104131,1737628254566,-500.0,0.000189,2]
[350104132,1737628254574,-500.0,0.000189,2]
[350104133,1737628254583,-13080.5520339,0.000189,4]
[350104134,1737628254596,-500.0,0.000189,2]
[350104135,1737628254606,-500.0,0.000189,2]
[350104136,1737628254615,-300.0,0.000189,6]
[350104137,1737628254624,-500.0,0.000189,2]
[350104138,1737628254634,-300.0,0.000189,2]
[350104139,1737628254644,-500.0,0.000189,2]
[350104140,1737628254653,-1000.0,0.000189,2]
[350104141,1737628254664,-500.0,0.000189,2]
[350104142,1737628254674,-459.37132251,0.000189,2]
[350104143,1737628254683,-500.0,0.000189,2]
[350104144,1737628254695,-553.17,0.000189,2]
[350104145,1737628254705,-616.64,0.00018901,2]
[350104146,1737628254714,-10178.65,0.00018901,2]
[350104147,1737628254723,-500.0,0.00018901,2]
[350104148,1737628254733,-500.0,0.00018901,2]
[350104149,1737628254743,-500.0,0.00018901,2]
[350104150,1737628254752,-500.0,0.00018901,2]
[350104151,1737628254761,-607.25,0.00018901,2]
[350104152,1737628254772,-500.0,0.00018901,2]
[350104153,1737628254781,-500.0,0.00018901,2]
[350104154,1737628254790,-177.30735326,0.00018901,2]
[350104155,1737628254800,-500.0,0.00018901,2]
[350104156,1737628254809,-500.0,0.00018901,2]
[350104157,1737628254818,-298.61209696,0.00018901,2]
[350104158,1737628254827,-500.0,0.00018901,2]
[350104159,1737628254836,-538.78,0.00018901,2]
[350104160,1737628254847,-500.0,0.00018901,2]
[350104161,1737628254856,-567.4,0.00018901,2]
[350104162,1737628254866,-500.0,0.00018901,2]
[350104163,1737628254875,-524.77,0.00018901,2]
[350104164,1737628254884,-500.0,0.00018901,2]
[350104165,1737628254894,-500.0,0.00018901,2]
[350104166,1737628254903,-500.0,0.00018901,2]
[350104167,1737628254914,-522.01,0.00018901,2]
[350104168,1737628254924,-500.0,0.00018901,2]
[350104169,1737628254933,-787.5,0.00018901,2]
[350104170,1737628254942,-1275.34,0.00018901,2]
[350104171,1737628254951,-769.32,0.00018901,2]
[350104172,1737628254961,-2156.24,0.00018901,2]
[350104173,1737628254970,-1069.57,0.00018901,2]
[350104174,1737628254979,-1953.19,0.00018901,2]
[350104175,1737628254990,-877.78,0.00018901,2]
[350104176,1737628254999,-728.1,0.00018901,2]
[350104177,1737628255008,-1299.42,0.00018901,2]
[350104178,1737628255017,-500.0,0.00018901,2]
[350104179,1737628255026,-1095.09,0.00018901,2]
[350104180,1737628255036,-3013.73,0.00018901,2]
[350104181,1737628255045,-500.0,0.00018901,2]
[350104182,1737628255055,-2369.17,0.00018901,2]
[350104183,1737628255063,-500.0,0.00018901,2]
[350104184,1737628255072,-4365.14,0.00018901,2]
[350104185,1737628255082,-1210.34,0.00018901,2]
[350104186,1737628255092,-1736.02,0.00018901,2]
[350104187,1737628255101,-580.8,0.00018901,2]
[350104188,1737628255110,-896.15,0.00018901,2]
[350104189,1737628255119,-1157.55,0.00018901,2]
[350104190,1737628255128,-970.94,0.00018901,2]
[350104191,1737628255137,-500.0,0.00018901,2]
[350104192,1737628255146,-845.56,0.00018901,2]
[350104193,1737628255155,-554.1,0.00018901,2]
[350104194,1737628255164,-2561.49626,0.00018901,2]
[350104195,1737628255173,-2164.97,0.00018901,2]
[350104196,1737628255181,-1078.92,0.00018901,2]
[350104197,1737628255191,-500.0,0.00018901,2]
[350104198,1737628255200,-500.0,0.00018901,2]
[350104199,1737628255210,-991.29,0.00018901,2]
[350104200,1737628255220,-832.57,0.00018901,2]
[350104201,1737628255230,-500.0,0.00018901,2]
[350104202,1737628255241,-1120.57,0.00018901,2]
[350104203,1737628255251,-500.0,0.00018901,2]
[350104204,1737628255260,-1260.06,0.00018901,2]
[350104205,1737628255271,-1318.84,0.00018901,2]
[350104206,1737628255281,-3971.43,0.00018901,2]
[350104207,1737628255291,-500.0,0.00018901,2]
[350104208,1737628255300,-500.0,0.00018901,2]
[350104209,1737628255312,-500.0,0.00018901,2]
[350104210,1737628255322,-500.0,0.00018901,2]
[350104211,1737628255333,-1140.59,0.00018901,2]
[350104212,1737628255345,-500.0,0.00018901,2]
[350104213,1737628255356,-753.77,0.00018901,2]
[350104214,1737628255366,-500.0,0.00018901,2]
[350104215,1737628255375,-1619.98,0.00018901,2]
[350104216,1737628255384,-500.0,0.00018901,2]
[350104217,1737628255394,-500.0,0.00018901,2]
[350104218,1737628255403,-2000.0,0.00018901,2]
[350104219,1737628255414,-200.0,0.00018901,2]
[350104220,1737628255423,-707.4,0.00018901,2]
[350104221,1737628255435,-1613.72,0.00018901,2]
[350104222,1737628255444,-877.65,0.00018901,2]
[350104223,1737628255455,-525.36,0.00018901,2]
[350104224,1737628255465,-151.0,0.00018901,2]
[350104225,1737628255475,-913.42,0.00018901,2]
[350104226,1737628255484,-1322.09,0.00018901,2]
[350104227,1737628255494,-152.45801,0.00018901,2]
[350104228,1737628255503,-500.0,0.00018901,2]
[350104229,1737628255512,-500.0,0.00018902,2]
[350104230,1737628255521,-500.0,0.00018902,2]
[350104231,1737628255530,-500.0,0.00018902,2]
[350104232,1737628255662,-512.04,0.00018902,2]
[350104233,1737628255673,-794.66,0.00018902,2]
[350104234,1737628255682,-500.0,0.00018902,2]
[350104235,1737628255698,-500.0,0.00018902,2]
[350104236,1737628255707,-500.0,0.00018902,2]
[350104237,1737628255718,-500.0,0.00018902,2]
[350104238,1737628255727,-500.0,0.00018902,2]
[350104239,1737628255737,-500.0,0.00018902,2]
[350104240,1737628255748,-500.0,0.00018902,2]
[350104241,1737628255758,-500.0,0.00018902,2]
[350104242,1737628255769,-500.0,0.00018902,2]
[350104243,1737628255778,-500.0,0.00018902,2]
[350104244,1737628255787,-500.0,0.00018902,2]
[350104245,1737628255796,-500.0,0.00018902,2]
[350104246,1737628255806,-526.75,0.00018902,2]
[350104247,1737628255815,-500.0,0.00018902,2]
[350104248,1737628255825,-500.0,0.00018902,2]
[350104249,1737628255834,-500.0,0.00018902,2]
[350104250,1737628255845,-500.0,0.00018902,2]
[350104251,1737628255855,-500.0,0.00018902,2]
[350104252,1737628255864,-500.0,0.00018902,2]
[350104253,1737628255874,-500.0,0.00018902,2]
[350104254,1737628255883,-788.17,0.00018902,2]
[350104255,1737628255892,-500.0,0.00018902,2]
[350104256,1737628255902,-722.95,0.00018902,2]
[350104257,1737628255911,-599.32,0.00018902,2]
[350104258,1737628255922,-500.0,0.00018902,2]
[350104259,1737628255931,-424.4983748,0.00018902,2]
[350104260,1737628255941,-500.0,0.00018902,2]
[350104261,1737628255950,-500.0,0.00018902,2]
[350104262,1737628255960,-881.88,0.00018904,2]
[350104263,1737628255970,-741.3,0.00018904,2]
[350104264,1737628255979,-556.21,0.00018904,2]
[350104265,1737628255989,-1227.15,0.00018904,2]
[350104266,1737628256000,-1762.16,0.00018904,2]
[350104267,1737628256009,-1174.6,0.00018904,2]
[350104268,1737628256018,-500.0,0.00018904,2]
[350104269,1737628256029,-1813.47,0.00018904,2]
[350104270,1737628256038,-868.18,0.00018904,2]
[350104271,1737628256049,-1398.82,0.00018904,2]
[350104272,1737628256058,-1853.11,0.00018904,2]
[350104273,1737628256067,-976.92,0.00018904,2]
[350104274,1737628256077,-803.47,0.00018904,2]
[350104275,1737628256087,-878.69,0.00018904,2]
[350104276,1737628256098,-2113.38,0.00018904,2]
[350104277,1737628256107,-2524.6,0.00018904,2]
[350104278,1737628256117,-2306.75,0.00018904,2]
[350104279,1737628256127,-684.26,0.00018904,2]
[350104280,1737628256136,-619.33,0.00018904,2]
[350104281,1737628256146,-616.66,0.00018904,2]
[350104282,1737628256155,-500.0,0.00018904,2]
[350104283,1737628256165,-805.55555555,0.00018904,2]
[350104284,1737628256175,-1011.31940574,0.00018906,2]
[350104285,1737628256184,-2232.825348,0.00018913,2]
[350104286,1737628256194,-1849.19105754,0.00018951,2]
[350104287,1737628256204,-805.55555555,0.00018986,2]
[350104288,1737628256216,-500.0,0.00018989,2]
[350104289,1737628256226,-500.0,0.00018989,2]
[350104290,1737628256236,-500.0,0.00018989,2]
[350104291,1737628256248,-500.0,0.00018989,2]
[350104292,1737628256259,-501.34,0.00018989,2]
[350104293,1737628256271,-500.0,0.00018989,2]
[350104294,1737628256282,-518.4,0.00018989,2]
[350104295,1737628256293,-500.0,0.00018989,2]
[350104296,1737628256305,-500.0,0.00018989,2]
[350104297,1737628256318,-500.0,0.00018989,2]
[350104298,1737628256328,-500.0,0.00018989,2]
[350104299,1737628256339,-1109.95,0.00018989,2]
[350104300,1737628256349,-500.0,0.00018989,2]
[350104301,1737628256358,-503.12,0.00018989,2]
[350104302,1737628256368,-1924.8,0.00018989,2]
[350104303,1737628256378,-1424.7,0.00018989,2]
[350104304,1737628256388,-846.93,0.00018989,2]
[350104305,1737628256399,-897.83,0.00018989,2]
[350104306,1737628256410,-1931.74,0.00018989,2]
[350104307,1737628256420,-500.0,0.00018989,2]
[350104308,1737628256430,-681.171483,0.00018989,2]
[350104309,1737628256443,-500.0,0.00018989,2]
[350104310,1737628256455,-500.0,0.00018989,2]
[350104311,1737628256466,-1135.0,0.00018989,2]
[350104312,1737628256476,-745.81,0.00018989,2]
[350104313,1737628256487,-2877.57,0.00018989,2]
[350104314,1737628256497,-752.33,0.00018989,2]
[350104315,1737628256508,-594.772219,0.00018989,2]
[350104316,1737628256518,-500.0,0.00018989,2]
[350104317,1737628256528,-885.15,0.00018989,2]
[350104318,1737628256538,-1925.26,0.00018989,2]
[350104319,1737628256549,-1152.02,0.00018989,2]
[350104320,1737628256559,-1595.84,0.00018989,2]
[350104321,1737628256569,-692.87,0.00018989,2]
[350104322,1737628256579,-500.0,0.00018989,2]
[350104323,1737628256592,-1782.27,0.00018989,2]
[350104324,1737628256602,-3581.4,0.00018989,2]
[350104325,1737628256611,-2785.13,0.00018989,2]
[350104326,1737628256621,-649.91,0.00018989,2]
[350104327,1737628256630,-1135.06,0.00018989,2]
[350104328,1737628256640,-1952.88,0.00018989,2]
[350104329,1737628256650,-925.88,0.00018989,2]
[350104330,1737628256659,-2408.66,0.00018989,2]
[350104331,1737628256670,-575.04,0.00018989,2]
[350104332,1737628256681,-151.987157,0.00018989,2]
[350104333,1737628256692,-500.0,0.00018989,2]
[350104334,1737628256702,-500.0,0.00018989,2]
[350104335,1737628256714,-1828.0,0.00018989,2]
[350104336,1737628256724,-1061.78,0.00018989,2]
[350104337,1737628256734,-151.0,0.00018989,2]
[350104338,1737628256744,-645.58,0.00018989,2]
[350104339,1737628256754,-1269.91,0.00018989,2]
[350104340,1737628256764,-2487.38,0.00018989,2]
[350104341,1737628256774,-151.782415,0.00018989,2]
[350104342,1737628256783,-151.0,0.00018989,2]
[350104343,1737628256793,-1333.319564,0.00018989,2]
[350104344,1737628256802,-1333.319564,0.00018989,2]
[350104345,1737628256811,-151.0,0.00018989,2]
[350104346,1737628256819,-873.75,0.00018989,2]
[350104347,1737628256828,-151.0,0.00018989,2]
[350104348,1737628256837,-500.0,0.00018989,2]
[350104349,1737628256848,-151.0,0.00018989,2]
[350104350,1737628256857,-1125.77,0.00018989,2]
[350104351,1737628256867,-776.84,0.00018989,2]
[350104352,1737628256876,-500.0,0.00018989,2]
[350104353,1737628256885,-667.54,0.00018989,2]
[350104354,1737628256895,-5015.10786053,0.00019,4]
[350104355,1737628256904,-650.0,0.00019,2]
[350104356,1737628256913,-11022.68710684,0.00019,2]
[350104357,1737628256922,-150.0,0.00019006,2]
[350104358,1737628256931,-150.0,0.0001901,2]
[350104359,1737628256940,-602.64919961,0.00019011,2]
[350104360,1737628256949,-150.0,0.00019022,2]
[350104361,1737628256958,-150.0,0.00019027,2]
[350104362,1737628256967,-150.0,0.00019038,2]
[350104363,1737628256976,-150.0,0.00019045,2]
[350104364,1737628256985,-150.0,0.00019045,2]
[350104365,1737628256994,-202.887859,0.00019063,2]
[350104366,1737628257003,-151.0,0.00019063,2]
[350104367,1737628257012,-153.525726,0.00019063,2]
[350104368,1737628257021,-151.0,0.00019063,2]
[350104369,1737628257030,-151.0,0.00019063,2]
[350104370,1737628257039,-151.0,0.00019063,2]
[350104371,1737628257047,-150.0,0.00019066,2]
[350104372,1737628257057,-150.0,0.00019067,2]
[350104373,1737628257067,-805.55555555,0.00019068,2]
[350104374,1737628257077,-150.0,0.00019069,2]